[Event "Live Chess"]
[Site "Chess.com"]
[Date "2023.05.21"]
[Round "-"]
[White "AlanPaling"]
[Black "chrisbradgate"]
[Result "1-0"]
[WhiteElo "1379"]
[BlackElo "864"]
[TimeControl "300"]
[EndTime "6:55:21 PDT"]
[Termination "AlanPaling won by checkmate"]

1. c4 {[%clk 0:04:58.9]} 1... e5 {[%clk 0:04:57.5]} 2. Nc3 {[%clk 0:04:57.7]}
2... Nc6 {[%clk 0:04:55.5]} 3. g3 {[%clk 0:04:55.9]} 3... Bb4 {[%clk 0:04:53.2]}
4. Bg2 {[%clk 0:04:54.3]} 4... Bxc3 {[%clk 0:04:51.2]} 5. dxc3 {[%clk
0:04:52.8]} 5... f6 {[%clk 0:04:48.8]} 6. e4 {[%clk 0:04:51.3]} 6... d6 {[%clk
0:04:47.8]} 7. Be3 {[%clk 0:04:38.3]} 7... Be6 {[%clk 0:04:45.2]} 8. b3 {[%clk
0:04:36.4]} 8... Qd7 {[%clk 0:04:44.1]} 9. Qd2 {[%clk 0:04:33]} 9... O-O-O
{[%clk 0:04:41.8]} 10. f4 {[%clk 0:04:14.5]} 10... exf4 {[%clk 0:04:31.7]} 11.
gxf4 {[%clk 0:04:13.1]} 11... Nge7 {[%clk 0:04:26.9]} 12. f5 {[%clk 0:04:11.5]}
12... Bf7 {[%clk 0:04:24.1]} 13. Bf1 {[%clk 0:04:05.6]} 13... Rhg8 {[%clk
0:04:15.5]} 14. b4 {[%clk 0:03:53.5]} 14... Bh5 {[%clk 0:04:13.8]} 15. Be2
{[%clk 0:03:45.9]} 15... Bxe2 {[%clk 0:04:11.9]} 16. Nxe2 {[%clk 0:03:44.3]}
16... Ne5 {[%clk 0:04:08.7]} 17. Qc2 {[%clk 0:03:03.5]} 17... Nxc4 {[%clk
0:04:01.4]} 18. Bd4 {[%clk 0:02:55]} 18... a6 {[%clk 0:03:44.6]} 19. Nf4 {[%clk
0:02:49]} 19... Rde8 {[%clk 0:03:21.4]} 20. Ne6 {[%clk 0:02:47.2]} 20... Nc6
{[%clk 0:03:13.9]} 21. Bf2 {[%clk 0:02:40.4]} 21... Nd8 {[%clk 0:03:11.9]} 22.
Qb3 {[%clk 0:02:02.5]} 22... Ne5 {[%clk 0:03:02.6]} 23. Nd4 {[%clk 0:01:54.3]}
23... Ndc6 {[%clk 0:02:53.6]} 24. b5 {[%clk 0:01:47.7]} 24... Nxd4 {[%clk
0:02:51.8]} 25. cxd4 {[%clk 0:01:46.6]} 25... Ng4 {[%clk 0:02:41.1]} 26. bxa6
{[%clk 0:01:37.6]} 26... Rxe4+ {[%clk 0:02:16.7]} 27. Kf1 {[%clk 0:01:29]} 27...
Qc6 {[%clk 0:01:54.4]} 28. Qxb7+ {[%clk 0:01:05]} 28... Qxb7 {[%clk 0:01:51.5]}
29. axb7+ {[%clk 0:01:03.7]} 29... Kxb7 {[%clk 0:01:50.6]} 30. Rb1+ {[%clk
0:01:02.5]} 30... Kc8 {[%clk 0:01:49.7]} 31. h3 {[%clk 0:00:58.6]} 31... Nxf2
{[%clk 0:01:47.4]} 32. Kxf2 {[%clk 0:00:57.4]} 32... Rf4+ {[%clk 0:01:46.5]} 33.
Kg3 {[%clk 0:00:53.3]} 33... Rxd4 {[%clk 0:01:43.9]} 34. Rhc1 {[%clk 0:00:46.2]}
34... Rd3+ {[%clk 0:01:41.9]} 35. Kf4 {[%clk 0:00:36.7]} 35... Rd4+ {[%clk
0:01:40.3]} 36. Kf3 {[%clk 0:00:35.4]} 36... Rd3+ {[%clk 0:01:38.9]} 37. Kf4
{[%clk 0:00:34.4]} 37... g5+ {[%clk 0:01:30.6]} 38. fxg6 {[%clk 0:00:32.2]}
38... Rd4+ {[%clk 0:01:24.1]} 39. Kf5 {[%clk 0:00:30.2]} 39... hxg6+ {[%clk
0:01:21.7]} 40. Kxf6 {[%clk 0:00:28.1]} 40... Rf4+ {[%clk 0:01:20.3]} 41. Kg5
{[%clk 0:00:26.4]} 41... Rd4 {[%clk 0:01:10.1]} 42. Rc6 {[%clk 0:00:24.8]} 42...
Rd5+ {[%clk 0:01:07.8]} 43. Kg4 {[%clk 0:00:23.8]} 43... Rd4+ {[%clk 0:01:06.2]}
44. Kg5 {[%clk 0:00:22.9]} 44... Rg7 {[%clk 0:01:00.8]} 45. Rbc1 {[%clk
0:00:21.1]} 45... Rd5+ {[%clk 0:00:58.8]} 46. Kf6 {[%clk 0:00:19.3]} 46... Rg8
{[%clk 0:00:53.7]} 47. Kf7 {[%clk 0:00:18.1]} 47... Rd8 {[%clk 0:00:46.5]} 48.
Kxg6 {[%clk 0:00:17.1]} 48... Rd3 {[%clk 0:00:43.4]} 49. Rxc7+ {[%clk
0:00:14.2]} 49... Kb8 {[%clk 0:00:28.8]} 50. Rh7 {[%clk 0:00:12.4]} 50... Rg3+
{[%clk 0:00:26.7]} 51. Kf6 {[%clk 0:00:10.3]} 51... Rf3+ {[%clk 0:00:25.4]} 52.
Ke6 {[%clk 0:00:08.7]} 52... Re3+ {[%clk 0:00:24.1]} 53. Kd5 {[%clk 0:00:07.5]}
53... Rd3+ {[%clk 0:00:22.6]} 54. Ke4 {[%clk 0:00:05.1]} 54... Re8+ {[%clk
0:00:18]} 55. Kxd3 {[%clk 0:00:03.2]} 55... Rd8 {[%clk 0:00:14.7]} 56. Rb1+
{[%clk 0:00:01.9]} 56... Ka8 {[%clk 0:00:12.2]} 57. Rbb7 {[%clk 0:00:01.3]}
57... Rb8 {[%clk 0:00:10.2]} 58. Ra7# {[%clk 0:00:00.8]} 1-0

[Event "Live Chess"]
[Site "Chess.com"]
[Date "2023.05.21"]
[Round "-"]
[White "smoggyrabbit"]
[Black "SimpleHarmonic1"]
[Result "0-1"]
[WhiteElo "1628"]
[BlackElo "2045"]
[TimeControl "300"]
[EndTime "6:55:21 PDT"]
[Termination "SimpleHarmonic1 won on time"]

1. d4 {[%clk 0:04:57.2]} 1... Nf6 {[%clk 0:04:52.6]} 2. Nf3 {[%clk 0:04:54.4]}
2... e6 {[%clk 0:04:52]} 3. e3 {[%clk 0:04:52.6]} 3... d5 {[%clk 0:04:51.7]} 4.
Bd3 {[%clk 0:04:51.1]} 4... c5 {[%clk 0:04:51.5]} 5. b3 {[%clk 0:04:49.8]} 5...
Be7 {[%clk 0:04:50.6]} 6. O-O {[%clk 0:04:48.1]} 6... O-O {[%clk 0:04:50.3]} 7.
Bb2 {[%clk 0:04:46.5]} 7... b6 {[%clk 0:04:48.7]} 8. Nbd2 {[%clk 0:04:43.8]}
8... Bb7 {[%clk 0:04:48]} 9. Ne5 {[%clk 0:04:42.6]} 9... Nbd7 {[%clk 0:04:41.9]}
10. f4 {[%clk 0:04:34.9]} 10... Rc8 {[%clk 0:04:37.7]} 11. c4 {[%clk 0:03:34.5]}
11... Ne4 {[%clk 0:04:05.9]} 12. Nxd7 {[%clk 0:03:02.2]} 12... Qxd7 {[%clk
0:04:02.9]} 13. Bxe4 {[%clk 0:02:33.1]} 13... dxe4 {[%clk 0:04:01.1]} 14. Qc2
{[%clk 0:02:20.9]} 14... f5 {[%clk 0:03:51.2]} 15. Rfd1 {[%clk 0:02:13.7]} 15...
Qe8 {[%clk 0:03:44.3]} 16. Nf1 {[%clk 0:01:58.7]} 16... Qh5 {[%clk 0:03:40.9]}
17. Ng3 {[%clk 0:01:47]} 17... Qg4 {[%clk 0:03:40.2]} 18. d5 {[%clk 0:01:35]}
18... exd5 {[%clk 0:03:33.5]} 19. cxd5 {[%clk 0:01:28.6]} 19... Bh4 {[%clk
0:03:25.6]} 20. Nf1 {[%clk 0:00:49.8]} 20... Rfd8 {[%clk 0:03:13.7]} 21. d6
{[%clk 0:00:47.9]} 21... Ba6 {[%clk 0:03:06.7]} 22. Rd2 {[%clk 0:00:18.3]} 22...
Bd3 {[%clk 0:03:02.7]} 23. Qc3 {[%clk 0:00:16.2]} 23... Rxd6 {[%clk 0:02:59.4]}
24. h3 {[%clk 0:00:15.2]} 24... Qg6 {[%clk 0:02:56]} 25. Qe5 {[%clk 0:00:10.6]}
25... Rcd8 {[%clk 0:02:49.1]} 26. Rad1 {[%clk 0:00:06.8]} 26... Bf6 {[%clk
0:02:48.5]} 0-1

[Event "Live Chess"]
[Site "Chess.com"]
[Date "2023.05.21"]
[Round "-"]
[White "Ocelot32"]
[Black "ameetghasi100"]
[Result "0-1"]
[WhiteElo "1394"]
[BlackElo "2583"]
[TimeControl "300"]
[EndTime "6:55:27 PDT"]
[Termination "ameetghasi100 won by resignation"]

1. e4 {[%clk 0:04:55.8]} 1... e5 {[%clk 0:04:46.2]} 2. Nf3 {[%clk 0:04:54]} 2...
Nc6 {[%clk 0:04:46.1]} 3. Bb5 {[%clk 0:04:51.4]} 3... a6 {[%clk 0:04:44.7]} 4.
Ba4 {[%clk 0:04:49.6]} 4... Nge7 {[%clk 0:04:41.2]} 5. O-O {[%clk 0:04:47.6]}
5... d6 {[%clk 0:04:37.3]} 6. h3 {[%clk 0:04:45.8]} 6... g6 {[%clk 0:04:31.7]}
7. c3 {[%clk 0:04:40.2]} 7... Bg7 {[%clk 0:04:29.5]} 8. Re1 {[%clk 0:04:38]}
8... O-O {[%clk 0:04:28.9]} 9. d3 {[%clk 0:04:34.4]} 9... f5 {[%clk 0:04:27.8]}
10. Bb3+ {[%clk 0:04:28.2]} 10... Kh8 {[%clk 0:04:22.2]} 11. Bg5 {[%clk
0:04:26.5]} 11... h6 {[%clk 0:04:19.6]} 12. Bxe7 {[%clk 0:04:22.4]} 12... Nxe7
{[%clk 0:04:19.5]} 13. Nbd2 {[%clk 0:04:19.2]} 13... c6 {[%clk 0:04:16.2]} 14.
Qc2 {[%clk 0:04:13.7]} 14... g5 {[%clk 0:04:09.7]} 15. exf5 {[%clk 0:04:05.8]}
15... Nxf5 {[%clk 0:04:06.4]} 16. d4 {[%clk 0:03:59.9]} 16... exd4 {[%clk
0:04:04.2]} 17. Nxd4 {[%clk 0:03:57.8]} 17... Nxd4 {[%clk 0:04:03.7]} 18. cxd4
{[%clk 0:03:56.6]} 18... Bxd4 {[%clk 0:04:02.9]} 19. Qg6 {[%clk 0:03:52.2]}
19... Qf6 {[%clk 0:03:59.9]} 20. Qh5 {[%clk 0:03:44.1]} 20... Bxf2+ {[%clk
0:03:55.1]} 21. Kh1 {[%clk 0:03:37.1]} 21... Bxe1 {[%clk 0:03:53.4]} 22. Rxe1
{[%clk 0:03:36]} 22... d5 {[%clk 0:03:48.1]} 23. Nf3 {[%clk 0:03:28.4]} 23...
Bf5 {[%clk 0:03:45.4]} 24. h4 {[%clk 0:03:18.5]} 24... Qg6 {[%clk 0:03:38.4]}
25. Qxg6 {[%clk 0:03:13.9]} 25... Bxg6 {[%clk 0:03:38.3]} 26. hxg5 {[%clk
0:03:13.2]} 26... Rae8 {[%clk 0:03:36.3]} 27. Rxe8 {[%clk 0:03:09.7]} 27... Rxe8
{[%clk 0:03:36.2]} 28. gxh6 {[%clk 0:03:08.6]} 28... Re2 {[%clk 0:03:33.4]} 29.
Nh4 {[%clk 0:03:01.2]} 29... Be4 {[%clk 0:03:31.1]} 30. Kh2 {[%clk 0:02:55.6]}
30... Rxb2 {[%clk 0:03:29.3]} 31. Kh3 {[%clk 0:02:50.5]} 31... Kh7 {[%clk
0:03:27.5]} 32. g4 {[%clk 0:02:48.6]} 32... Kxh6 {[%clk 0:03:26.9]} 33. Nf5+
{[%clk 0:02:45.9]} 33... Bxf5 {[%clk 0:03:24]} 34. gxf5 {[%clk 0:02:45.1]} 34...
Rxb3+ {[%clk 0:03:22.3]} 35. axb3 {[%clk 0:02:42.3]} 35... Kg5 {[%clk
0:03:22.2]} 0-1

[Event "Live Chess"]
[Site "Chess.com"]
[Date "2023.05.21"]
[Round "-"]
[White "LiamClery2020"]
[Black "GMHarry-youtube"]
[Result "0-1"]
[WhiteElo "1954"]
[BlackElo "2046"]
[TimeControl "300"]
[EndTime "6:55:34 PDT"]
[Termination "GMHarry-youtube won by resignation"]

1. e4 {[%clk 0:04:59.3]} 1... c5 {[%clk 0:04:58.6]} 2. Nf3 {[%clk 0:04:58.1]}
2... d6 {[%clk 0:04:58.1]} 3. Bb5+ {[%clk 0:04:56.4]} 3... Bd7 {[%clk 0:04:57]}
4. Bxd7+ {[%clk 0:04:54.1]} 4... Qxd7 {[%clk 0:04:56.9]} 5. O-O {[%clk
0:04:53.3]} 5... Nc6 {[%clk 0:04:55.9]} 6. Re1 {[%clk 0:04:52.5]} 6... Nf6
{[%clk 0:04:54.2]} 7. c3 {[%clk 0:04:51.6]} 7... d5 {[%clk 0:04:52.2]} 8. e5
{[%clk 0:04:50.8]} 8... Ng8 {[%clk 0:04:50.4]} 9. d4 {[%clk 0:04:50]} 9... e6
{[%clk 0:04:49.6]} 10. Bg5 {[%clk 0:04:45.7]} 10... Be7 {[%clk 0:04:47.5]} 11.
Bxe7 {[%clk 0:04:44.4]} 11... Ngxe7 {[%clk 0:04:47.4]} 12. Na3 {[%clk
0:04:43.8]} 12... c4 {[%clk 0:04:43.8]} 13. Nb5 {[%clk 0:04:42.1]} 13... Nc8
{[%clk 0:04:43.2]} 14. a3 {[%clk 0:04:40.2]} 14... a6 {[%clk 0:04:41.9]} 15.
Nd6+ {[%clk 0:04:37.3]} 15... Nxd6 {[%clk 0:04:41.1]} 16. exd6 {[%clk
0:04:37.2]} 16... Qxd6 {[%clk 0:04:40.9]} 17. Ne5 {[%clk 0:04:37]} 17... f6
{[%clk 0:04:13.9]} 18. Qh5+ {[%clk 0:04:33.9]} 18... g6 {[%clk 0:03:53.8]} 19.
Nxg6 {[%clk 0:04:29.3]} 19... O-O-O {[%clk 0:03:47.9]} 20. Nxh8 {[%clk
0:04:26.6]} 20... Rxh8 {[%clk 0:03:47.8]} 21. Qf7 {[%clk 0:04:22.2]} 21... Nd8
{[%clk 0:03:41.9]} 22. Qxf6 {[%clk 0:04:20.1]} 22... Rf8 {[%clk 0:03:39.8]} 23.
Qe5 {[%clk 0:04:18.5]} 23... Qe7 {[%clk 0:03:26]} 24. f3 {[%clk 0:04:12]} 24...
Rg8 {[%clk 0:03:18.8]} 25. Re2 {[%clk 0:04:09]} 25... Rg5 {[%clk 0:03:16.4]} 26.
Qf4 {[%clk 0:04:00.3]} 26... Kd7 {[%clk 0:03:13]} 27. Rae1 {[%clk 0:03:57.3]}
27... Qg7 {[%clk 0:03:11.2]} 28. g3 {[%clk 0:03:54]} 28... Rf5 {[%clk
0:03:09.7]} 29. Qe3 {[%clk 0:03:50]} 29... h5 {[%clk 0:03:08.3]} 30. Kh1 {[%clk
0:03:47.6]} 30... h4 {[%clk 0:03:01.9]} 31. g4 {[%clk 0:03:45.3]} 31... Rf8
{[%clk 0:03:00.1]} 32. Kg2 {[%clk 0:03:38.4]} 32... Qg6 {[%clk 0:02:53.7]} 33.
h3 {[%clk 0:03:33.9]} 33... Rf6 {[%clk 0:02:52.4]} 34. b3 {[%clk 0:03:27.4]}
34... cxb3 {[%clk 0:02:40.9]} 35. Rb2 {[%clk 0:03:26.2]} 35... Nc6 {[%clk
0:02:34]} 36. Rxb3 {[%clk 0:03:23.8]} 36... Qc2+ {[%clk 0:02:33.1]} 37. Re2
{[%clk 0:03:13]} 37... Qxb3 {[%clk 0:02:32.3]} 38. Qg5 {[%clk 0:03:11.2]} 38...
Rf7 {[%clk 0:02:27.8]} 39. Qxh4 {[%clk 0:03:08.9]} 39... Qxc3 {[%clk 0:02:25.9]}
40. Qh6 {[%clk 0:03:07.4]} 40... Nxd4 {[%clk 0:02:23.5]} 41. Rf2 {[%clk
0:03:02.7]} 41... Nxf3 {[%clk 0:02:21.1]} 42. g5 {[%clk 0:02:59.1]} 42... Ne1+
{[%clk 0:02:19.4]} 43. Kf1 {[%clk 0:02:57.8]} 43... Qd3+ {[%clk 0:02:14.7]} 44.
Kxe1 {[%clk 0:02:56.5]} 44... Qb1+ {[%clk 0:02:10.3]} 45. Ke2 {[%clk 0:02:55]}
45... Qc2+ {[%clk 0:02:09.5]} 46. Ke3 {[%clk 0:02:54.4]} 46... Qxf2+ {[%clk
0:02:08]} 0-1

[Event "Live Chess"]
[Site "Chess.com"]
[Date "2023.05.21"]
[Round "-"]
[White "Chesscoach_Golichenko"]
[Black "kevinmilleruk"]
[Result "1-0"]
[WhiteElo "2623"]
[BlackElo "1149"]
[TimeControl "300"]
[EndTime "6:55:36 PDT"]
[Termination "Chesscoach_Golichenko won by resignation"]

1. d4 {[%clk 0:04:56.4]} 1... d5 {[%clk 0:04:57.7]} 2. Nc3 {[%clk 0:04:44]} 2...
Nf6 {[%clk 0:04:55.2]} 3. Bf4 {[%clk 0:04:40.2]} 3... Nc6 {[%clk 0:04:50.3]} 4.
Nb5 {[%clk 0:04:35.2]} 4... e5 {[%clk 0:04:18.1]} 5. dxe5 {[%clk 0:04:23.2]}
5... Nh5 {[%clk 0:04:13.3]} 6. e3 {[%clk 0:04:10.6]} 6... Nxf4 {[%clk
0:04:11.5]} 7. exf4 {[%clk 0:04:10.5]} 7... Bc5 {[%clk 0:04:08]} 8. Qxd5 {[%clk
0:04:03.9]} 8... Qxd5 {[%clk 0:04:00.8]} 9. Nxc7+ {[%clk 0:03:53.1]} 9... Kd7
{[%clk 0:03:55.6]} 10. Nxd5 {[%clk 0:03:53]} 10... Re8 {[%clk 0:03:54]} 11. Nf3
{[%clk 0:03:49]} 11... f6 {[%clk 0:03:51.4]} 12. O-O-O {[%clk 0:03:46.3]} 12...
fxe5 {[%clk 0:03:48.5]} 13. Nb6+ {[%clk 0:03:43]} 13... Kc7 {[%clk 0:03:46.5]}
14. Nxa8+ {[%clk 0:03:40.2]} 14... Kb8 {[%clk 0:03:44.2]} 15. fxe5 {[%clk
0:03:39.2]} 15... Kxa8 {[%clk 0:03:41.1]} 16. Bb5 {[%clk 0:03:37.5]} 16... Bg4
{[%clk 0:03:39.3]} 17. Bxc6 {[%clk 0:03:36.4]} 17... bxc6 {[%clk 0:03:36.9]} 18.
Rd2 {[%clk 0:03:35.7]} 18... Bxf2 {[%clk 0:03:34.2]} 19. Rxf2 {[%clk 0:03:34.1]}
19... Bxf3 {[%clk 0:03:30.1]} 20. Rxf3 {[%clk 0:03:34]} 20... Rxe5 {[%clk
0:03:29.1]} 21. Rd1 {[%clk 0:03:33.3]} 1-0

[Event "Live Chess"]
[Site "Chess.com"]
[Date "2023.05.21"]
[Round "-"]
[White "GEMdzq"]
[Black "Bob2pen"]
[Result "0-1"]
[WhiteElo "2230"]
[BlackElo "1836"]
[TimeControl "300"]
[EndTime "6:55:55 PDT"]
[Termination "Bob2pen won by checkmate"]

1. e4 {[%clk 0:04:58.9]} 1... e6 {[%clk 0:04:55.9]} 2. d4 {[%clk 0:04:57.2]}
2... d5 {[%clk 0:04:55]} 3. Nc3 {[%clk 0:04:56.5]} 3... Bb4 {[%clk 0:04:53.4]}
4. e5 {[%clk 0:04:55.4]} 4... Ne7 {[%clk 0:04:52.2]} 5. Bd2 {[%clk 0:04:54.6]}
5... b6 {[%clk 0:04:50.7]} 6. Qg4 {[%clk 0:04:52.3]} 6... Ba6 {[%clk 0:04:45.3]}
7. Bxa6 {[%clk 0:04:45.1]} 7... Nxa6 {[%clk 0:04:43.4]} 8. a3 {[%clk 0:04:44.8]}
8... Bxc3 {[%clk 0:04:41.8]} 9. Bxc3 {[%clk 0:04:44.7]} 9... Nf5 {[%clk
0:04:39.1]} 10. Qe2 {[%clk 0:04:41]} 10... Qc8 {[%clk 0:04:32.1]} 11. Nf3 {[%clk
0:04:34.1]} 11... c5 {[%clk 0:04:30.5]} 12. Qb5+ {[%clk 0:04:30.9]} 12... Kf8
{[%clk 0:04:24.7]} 13. g4 {[%clk 0:04:28.4]} 13... Nxd4 {[%clk 0:04:21.5]} 14.
Bxd4 {[%clk 0:04:23.7]} 14... cxd4 {[%clk 0:04:18.2]} 15. Nxd4 {[%clk
0:04:23.6]} 15... Nc5 {[%clk 0:04:14.4]} 16. O-O {[%clk 0:04:14.3]} 16... h6
{[%clk 0:04:11.1]} 17. f4 {[%clk 0:04:11.7]} 17... Kg8 {[%clk 0:04:09.4]} 18. f5
{[%clk 0:04:07.5]} 18... Qd7 {[%clk 0:03:58.4]} 19. Qxd7 {[%clk 0:03:54.5]}
19... Nxd7 {[%clk 0:03:56.8]} 20. fxe6 {[%clk 0:03:53.8]} 20... fxe6 {[%clk
0:03:55.7]} 21. Nxe6 {[%clk 0:03:50.5]} 21... Nxe5 {[%clk 0:03:53.3]} 22. h3
{[%clk 0:03:47]} 22... Re8 {[%clk 0:03:49.7]} 23. Nc7 {[%clk 0:03:44.4]} 23...
Rd8 {[%clk 0:03:43.5]} 24. Rae1 {[%clk 0:03:42.6]} 24... Ng6 {[%clk 0:03:33.5]}
25. Ne6 {[%clk 0:03:26.1]} 25... Rc8 {[%clk 0:03:23.9]} 26. c3 {[%clk
0:03:18.1]} 26... Kh7 {[%clk 0:03:21]} 27. Rf7 {[%clk 0:03:14.6]} 27... Rhg8
{[%clk 0:03:12.9]} 28. Nd4 {[%clk 0:02:32.8]} 28... Rce8 {[%clk 0:03:03.2]} 29.
Rxe8 {[%clk 0:02:29.3]} 29... Rxe8 {[%clk 0:03:01.9]} 30. Rxa7 {[%clk
0:02:28.9]} 30... Re1+ {[%clk 0:02:57.2]} 31. Kf2 {[%clk 0:02:21.3]} 31... Rb1
{[%clk 0:02:54.1]} 32. Nf5 {[%clk 0:02:18.9]} 32... Rxb2+ {[%clk 0:02:50]} 33.
Ke3 {[%clk 0:02:17.4]} 33... Ne5 {[%clk 0:02:38]} 34. Rxg7+ {[%clk 0:02:15.5]}
34... Kh8 {[%clk 0:02:36.8]} 35. Rc7 {[%clk 0:01:49.8]} 35... Nc4+ {[%clk
0:02:32.2]} 36. Kf4 {[%clk 0:01:43.2]} 36... Rf2+ {[%clk 0:02:26.4]} 37. Kg3
{[%clk 0:01:39.8]} 37... Rc2 {[%clk 0:02:22.5]} 38. Nxh6 {[%clk 0:01:34.1]}
38... Rxc3+ {[%clk 0:02:20.7]} 39. Kh4 {[%clk 0:01:33.1]} 39... Rxa3 {[%clk
0:02:17.2]} 40. g5 {[%clk 0:01:29.7]} 40... Ne5 {[%clk 0:02:09.2]} 41. Ng4
{[%clk 0:01:02.2]} 41... Ng6+ {[%clk 0:02:00.7]} 42. Kh5 {[%clk 0:01:01.2]}
42... Nf4+ {[%clk 0:01:59.5]} 43. Kh6 {[%clk 0:01:00.3]} 43... Rxh3# {[%clk
0:01:58]} 0-1

[Event "Live Chess"]
[Site "Chess.com"]
[Date "2023.05.21"]
[Round "-"]
[White "LL220284LL"]
[Black "PantherCal"]
[Result "1/2-1/2"]
[WhiteElo "2282"]
[BlackElo "1828"]
[TimeControl "300"]
[EndTime "6:56:29 PDT"]
[Termination "Game drawn by stalemate"]

1. d4 {[%clk 0:04:58.8]} 1... d5 {[%clk 0:04:59]} 2. Nf3 {[%clk 0:04:54.7]} 2...
c6 {[%clk 0:04:58.9]} 3. b3 {[%clk 0:04:46.2]} 3... Bf5 {[%clk 0:04:58.8]} 4. e3
{[%clk 0:04:44.8]} 4... e6 {[%clk 0:04:57.6]} 5. Bd3 {[%clk 0:04:40.1]} 5... Nf6
{[%clk 0:04:55.5]} 6. O-O {[%clk 0:04:37.5]} 6... Bd6 {[%clk 0:04:54.7]} 7. Bb2
{[%clk 0:04:34.5]} 7... O-O {[%clk 0:04:53.4]} 8. Bxf5 {[%clk 0:04:30.9]} 8...
exf5 {[%clk 0:04:53.3]} 9. Nbd2 {[%clk 0:04:30.3]} 9... Nbd7 {[%clk 0:04:52.1]}
10. c4 {[%clk 0:04:26.5]} 10... Ne4 {[%clk 0:04:50.9]} 11. cxd5 {[%clk
0:04:22.9]} 11... cxd5 {[%clk 0:04:50.8]} 12. Rc1 {[%clk 0:04:21.7]} 12... Ndf6
{[%clk 0:04:44.3]} 13. Ne5 {[%clk 0:04:19.8]} 13... Rc8 {[%clk 0:04:39.2]} 14.
Ndf3 {[%clk 0:04:18.1]} 14... Qe7 {[%clk 0:04:27.5]} 15. Qd3 {[%clk 0:04:15.6]}
15... a6 {[%clk 0:04:25.8]} 16. Nd2 {[%clk 0:04:12.5]} 16... g6 {[%clk
0:04:24.5]} 17. f3 {[%clk 0:04:10.2]} 17... Nxd2 {[%clk 0:04:17.5]} 18. Qxd2
{[%clk 0:04:09.2]} 18... Nd7 {[%clk 0:04:07.4]} 19. Nxd7 {[%clk 0:04:03.8]}
19... Qxd7 {[%clk 0:04:07.3]} 20. e4 {[%clk 0:04:03.2]} 20... dxe4 {[%clk
0:04:00.9]} 21. fxe4 {[%clk 0:04:02.3]} 21... fxe4 {[%clk 0:03:58.7]} 22. d5
{[%clk 0:04:01.9]} 22... Bc5+ {[%clk 0:03:48]} 23. Kh1 {[%clk 0:04:00.6]} 23...
e3 {[%clk 0:03:38.4]} 24. Qc3 {[%clk 0:03:57]} 24... f6 {[%clk 0:03:38]} 25.
Rxf6 {[%clk 0:03:55.2]} 25... Rxf6 {[%clk 0:03:37.9]} 26. Qxf6 {[%clk
0:03:53.6]} 26... e2 {[%clk 0:03:17.9]} 27. Qh8+ {[%clk 0:03:50]} 27... Kf7
{[%clk 0:03:17.2]} 28. Qxh7+ {[%clk 0:03:36.2]} 28... Ke8 {[%clk 0:03:16.1]} 29.
Qh8+ {[%clk 0:03:25.1]} 29... Bf8 {[%clk 0:03:09.7]} 30. Qe5+ {[%clk 0:03:22.7]}
30... Be7 {[%clk 0:03:03.9]} 31. Rxc8+ {[%clk 0:03:18.4]} 31... Qxc8 {[%clk
0:03:03.8]} 32. Qxe2 {[%clk 0:03:17.6]} 32... Qf5 {[%clk 0:02:52.2]} 33. g3
{[%clk 0:03:08.6]} 33... Qxd5+ {[%clk 0:02:49.1]} 34. Kg1 {[%clk 0:03:07.4]}
34... Kd7 {[%clk 0:02:42.3]} 35. Qg4+ {[%clk 0:02:58.5]} 35... Kc7 {[%clk
0:02:39.4]} 36. Qf4+ {[%clk 0:02:52.5]} 36... Bd6 {[%clk 0:02:33.4]} 37. Qc4+
{[%clk 0:02:49.1]} 37... Qxc4 {[%clk 0:02:32.6]} 38. bxc4 {[%clk 0:02:48.1]}
38... Kc6 {[%clk 0:02:28.9]} 39. Bd4 {[%clk 0:02:45.6]} 39... Bc5 {[%clk
0:02:13.7]} 40. Bxc5 {[%clk 0:02:42.9]} 40... Kxc5 {[%clk 0:02:13.6]} 41. h4
{[%clk 0:02:42.4]} 41... Kxc4 {[%clk 0:02:13.1]} 42. g4 {[%clk 0:02:41.3]} 42...
Kd4 {[%clk 0:02:11.2]} 43. Kf2 {[%clk 0:02:37.8]} 43... Ke4 {[%clk 0:02:06.3]}
44. h5 {[%clk 0:02:37]} 44... gxh5 {[%clk 0:02:05.2]} 45. gxh5 {[%clk
0:02:36.9]} 45... Kf5 {[%clk 0:02:04.8]} 46. Ke3 {[%clk 0:02:35.2]} 46... Kg5
{[%clk 0:02:00.8]} 47. Kd4 {[%clk 0:02:34.5]} 47... Kxh5 {[%clk 0:01:58.3]} 48.
Kc5 {[%clk 0:02:33.9]} 48... Kg6 {[%clk 0:01:57.4]} 49. Kb6 {[%clk 0:02:33.4]}
49... Kf7 {[%clk 0:01:56.6]} 50. Kxb7 {[%clk 0:02:32.9]} 50... a5 {[%clk
0:01:56.3]} 51. a4 {[%clk 0:02:31.6]} 51... Ke7 {[%clk 0:01:54.1]} 52. Kb6
{[%clk 0:02:31.1]} 52... Kd7 {[%clk 0:01:53.4]} 53. Kxa5 {[%clk 0:02:30.7]}
53... Kc8 {[%clk 0:01:52.6]} 54. Ka6 {[%clk 0:02:30.5]} 54... Kb8 {[%clk
0:01:52.5]} 55. Kb6 {[%clk 0:02:30.1]} 55... Ka8 {[%clk 0:01:52.2]} 56. Ka6
{[%clk 0:02:30]} 56... Kb8 {[%clk 0:01:52.1]} 57. a5 {[%clk 0:02:29.5]} 57...
Ka8 {[%clk 0:01:52]} 58. Kb6 {[%clk 0:02:28.6]} 58... Kb8 {[%clk 0:01:51.9]} 59.
a6 {[%clk 0:02:28.5]} 59... Ka8 {[%clk 0:01:51.8]} 60. a7 {[%clk 0:02:28.4]}
1/2-1/2

[Event "Live Chess"]
[Site "Chess.com"]
[Date "2023.05.21"]
[Round "-"]
[White "GMMickeyAdams"]
[Black "raminguy"]
[Result "1-0"]
[WhiteElo "2785"]
[BlackElo "1947"]
[TimeControl "300"]
[EndTime "6:56:48 PDT"]
[Termination "GMMickeyAdams won by resignation"]

1. e4 {[%clk 0:04:57.6]} 1... e5 {[%clk 0:04:59.1]} 2. Nf3 {[%clk 0:04:55.7]}
2... Nc6 {[%clk 0:04:56.7]} 3. Nc3 {[%clk 0:04:53.7]} 3... Nf6 {[%clk
0:04:53.3]} 4. Bb5 {[%clk 0:04:52.2]} 4... Nd4 {[%clk 0:04:51.9]} 5. Ba4 {[%clk
0:04:50.3]} 5... Nxf3+ {[%clk 0:04:46.7]} 6. gxf3 {[%clk 0:04:48.8]} 6... c6
{[%clk 0:04:42.3]} 7. d4 {[%clk 0:04:47]} 7... Qc7 {[%clk 0:04:31.8]} 8. f4
{[%clk 0:04:39.6]} 8... exd4 {[%clk 0:04:24.9]} 9. Qxd4 {[%clk 0:04:37.6]} 9...
a5 {[%clk 0:04:20.9]} 10. e5 {[%clk 0:04:35.5]} 10... Ng8 {[%clk 0:04:14.8]} 11.
a3 {[%clk 0:04:23.3]} 11... b5 {[%clk 0:04:11.7]} 12. Bb3 {[%clk 0:04:21.7]}
12... Ne7 {[%clk 0:04:09.5]} 13. Qe4 {[%clk 0:04:12.5]} 13... Bb7 {[%clk
0:04:03.4]} 14. Rg1 {[%clk 0:04:05.4]} 14... Qb6 {[%clk 0:03:57.2]} 15. Be3
{[%clk 0:03:45.1]} 15... c5 {[%clk 0:03:43.8]} 16. Bd5 {[%clk 0:03:43.5]} 16...
Nc6 {[%clk 0:03:15.4]} 17. f5 {[%clk 0:03:39.5]} 17... O-O-O {[%clk 0:03:08]}
18. O-O-O {[%clk 0:03:34.9]} 18... g6 {[%clk 0:02:48.8]} 19. f6 {[%clk
0:03:31.5]} 19... h5 {[%clk 0:02:44.3]} 20. f4 {[%clk 0:03:27.4]} 20... Bh6
{[%clk 0:02:30.7]} 21. Bxf7 {[%clk 0:03:24.4]} 21... Ne7 {[%clk 0:01:18.8]} 22.
Qd3 {[%clk 0:03:19.1]} 22... Nf5 {[%clk 0:01:14.2]} 23. Nd5 {[%clk 0:03:09.7]}
23... Bxd5 {[%clk 0:00:58.6]} 24. Bxd5 {[%clk 0:03:07.4]} 24... Nxe3 {[%clk
0:00:46.6]} 25. Qxe3 {[%clk 0:03:05.7]} 25... Bf8 {[%clk 0:00:33.2]} 26. Rxg6
{[%clk 0:03:02.3]} 26... b4 {[%clk 0:00:32.4]} 27. a4 {[%clk 0:03:00.9]} 27...
b3 {[%clk 0:00:25.3]} 28. Bxb3 {[%clk 0:02:57.9]} 28... d6 {[%clk 0:00:16.5]}
29. e6 {[%clk 0:02:54.6]} 1-0